Cogmind - Beta 15 @@@ ROGUE MODE // 2025.08.12 @ 12:03:31 Player: WitherScout Result: Destroyed by H-55 Commando with Assault Rifle Performance ------------- Evolutions (3) 1500 Regions Visited (4) 800 Robots Destroyed (13) 65 Value Destroyed (357) 357 Prototype IDs (4) 80 Alien Tech Used (0) 0 Bonus (0) 0 TOTAL SCORE: 2802 Bonus ------- None Cogmind --------- Core Integrity 0/700 Matter 278/300 Energy 160/160 System Corruption 0% Temperature Cool (0) Movement Flying (32) Location -7/Factory Parts ------- > --- POWER (2) -------- Light Nuclear Core > --- PROPULSION (5) --- VTOL Module Cooled VTOL Module > --- UTILITY (4) ------ System Restoration Module > --- WEAPON (2) ------- Light Assault Rifle > --- INVENTORY (5) ---- Improved Heat Sink Peak State ------------ > --- POWER ------------ Light Nuclear Core Light Nuclear Core > --- PROPULSION ------- VTOL Module VTOL Module Cooled VTOL Module > --- UTILITY ---------- Advanced ECM Suite > --- WEAPON ----------- Improved Spread Laser Improved Spread Laser > --- INVENTORY -------- Improved Heat Sink Light Assault Rifle [Rating: 29] Favorites ----------- Power Micro Nuclear Core Engine Ion Engine Power Core Micro Nuclear Core Propulsion Cooled VTOL Module Wheel Wheel Flight Unit Cooled VTOL Module Utility ECM Suite Device ECM Suite Storage Small Storage Unit Processor Signal Interpreter Weapon Light Assault Rifle Energy Gun Improved Spread Laser Ballistic Gun Light Assault Rifle Launcher Advanced EMP Blaster Build | -11 -10 -9 -8 -7 ------- Run | Yrd Mat Mat Mat Fac Slots Evolved 6 | . . 2 2 2 Power 1 | . . . 1 . Propulsion 3 | . . 1 1 1 Utility 2 | . . 1 . 1 Weapon . | . . . . . Parts Attached 35 | 2 8 6 1 18 Power 8 | 1 . . 1 6 Engine 4 | 1 . . 1 2 Core 4 | . . . . 4 Reactor . | . . . . . Propulsion 13 | 1 3 4 . 5 Treads . | . . . . . Leg . | . . . . . Wheel 1 | 1 . . . . Hover . | . . . . . Flight 12 | . 3 4 . 5 Utility 7 | . 1 2 . 4 Device 5 | . . 2 . 3 Storage 1 | . . . . 1 Processor 1 | . 1 . . . Hackware . | . . . . . Protection . | . . . . . Artifact . | . . . . . Weapon 7 | . 4 . . 3 Energy Gun 2 | . . . . 2 Energy Cannon . | . . . . . Ballistic Gun 4 | . 4 . . . Ballistic Cannon . | . . . . . Launcher 1 | . . . . 1 Special Weapon . | . . . . . Impact Weapon . | . . . . . Slashing Weapon . | . . . . . Piercing Weapon . | . . . . . Special Melee Weapon . | . . . . . Unidentified Prototypes 4 | . . . 1 3 Parts Lost 23 | . 3 6 . 14 Power 4 | . . . . 4 Propulsion 10 | . 2 4 . 4 Utility 3 | . . . . 3 Weapon 6 | . 1 2 . 3 Highest Loss Streak 7 | . 2 7 . 6 To Critical Strikes . | . . . . . Average Backups 4 | 2 3 4 4 4 Power 1 | 1 2 1 2 1 Propulsion . | . . . . . Utility 1 | . 1 1 1 1 Weapon . | . . 1 1 . Tool/Special . | . . . . . Unused Backups 1 | . . . . 1 Power . | . . . . . Propulsion . | . . . . . Utility 1 | . . . . 1 Weapon . | . . . . . Tool/Special . | . . . . . Average Slot Usage (%) 38 | . 54 30 27 34 Core 1 | . . . . 3 Flight 14 | . 19 15 9 13 Device 6 | . . 4 18 9 Processor 2 | . 10 . . . Energy Gun 1 | . . . . 3 Ballistic Gun 8 | . 23 9 . 1 Peak Build Rating 29 | 2 5 12 8 29 Average Rating 10 | . 3 4 5 15 On Entrance 2 | . . 3 6 5 Naked Turns 17 | . 6 11 . . Heaviest Build 21 | 5 3 9 4 21 Greatest Support 17 | 3 8 15 5 17 Greatest Overweight (x) 4 | 1 . . . 4 Average Overweight (x) . | . . . . . Largest Inventory Capacity 8 | 5 5 5 5 8 Average Capacity 5 | 5 5 5 5 5 Most Carried 6 | 5 5 5 5 6 Average Carried 4 | 3 3 3 4 4 Final Capacity 5 | 5 5 5 5 5 Final Carried 5 | 5 4 3 5 1 Class Distribution -------------------- 68% | Mutant 31% | Sprinter Dominant Class ---------------- Mutant | -10/Materials Mutant | -9/Materials Mutant | -8/Materials Sprinter | -7/Factory Resources | -11 -10 -9 -8 -7 ----------- Run | Yrd Mat Mat Mat Fac Matter Collected 699 | 220 85 20 . 374 Remotely . | . . . . . Salvage Created 452 | . 71 45 . 336 Parts 24 | . 8 1 . 15 Haulers Intercepted . | . . . . . Recyclers Shooed . | . . . . . Parts Field Recycled . | . . . . . Retrieved Matter . | . . . . . Parts Self-Destructed . | . . . . . Prevented . | . . . . . Kills | -11 -10 -9 -8 -7 ------- Run | Yrd Mat Mat Mat Fac Combat Hostiles Destroyed 11 | . 3 1 . 7 Melee 1 | . . 1 . . Guns 10 | . 3 . . 7 Classes Destroyed 4 | . 2 . . 2 Worker 1 | . . . . 1 Recycler 1 | . . . . 1 Swarmer 6 | . 2 . . 4 Grunt 5 | . 1 1 . 3 Best Kill Streak 9 | . 2 1 . 9 Combat Bots Only 7 | . 2 1 . 7 Max Kills in Single Turn 2 | . 1 1 . 2 Gunslinging . | . . . . . Exploded . | . . . . . Melee 1 | . . 1 . . Uniques/NPCs Destroyed . | . . . . . Combat | -11 -10 -9 -8 -7 -------- Run | Yrd Mat Mat Mat Fac Hostile Shots Fired 308 | . 43 78 3 184 Missed 117 | . 19 28 2 68 Hits 191 | . 24 50 1 116 Projectile 191 | . 24 50 1 116 AOE 1 | . . . . 1 Critical Strikes 5 | . 1 1 . 3 Damage Taken 2418 | . 260 587 15 1556 Core 1128 | . 52 352 15 709 Absorbed by Shields . | . . . . . Core Remaining (%) 72 | 100 79 12 97 . Volleys Fired 24 | . 11 . . 13 Largest 2 | . 2 . . 2 Hottest 150 | . 40 . . 150 Shots Fired 41 | . 21 . . 20 Gun 41 | . 21 . . 20 Cannon . | . . . . . Launcher . | . . . . . Special . | . . . . . Kinetic 23 | . 21 . . 2 Thermal 18 | . . . . 18 Explosive . | . . . . . Electromagnetic . | . . . . . Robot Hit Streak 6 | . 6 . . 5 Robot Miss Streak 10 | . 2 . . 10 Penetration Max . | . . . . . Secondary Targets 3 | . 1 . . 2 Max Gunslinging Chain 1 | . 1 . . 1 Shots Hit Robots 32 | . 14 . . 18 Core Hits 33 | . 6 2 . 25 Critical Kills . | . . . . . Critical Parts Destroyed . | . . . . . Critical Strikes . | . . . . . Melee Attacks . | . . . . . Impact . | . . . . . Slashing . | . . . . . Piercing . | . . . . . Sneak Attacks . | . . . . . Combat Hostiles . | . . . . . Follow-up Attacks . | . . . . . Damage Inflicted 456 | . 160 55 . 241 Guns 401 | . 160 . . 241 Cannons . | . . . . . Explosions . | . . . . . Melee . | . . . . . Ramming 55 | . . 55 . . Kinetic 175 | . 160 . . 15 Thermal 226 | . . . . 226 Explosive . | . . . . . Electromagnetic . | . . . . . Impact . | . . . . . Slashing . | . . . . . Piercing . | . . . . . Highest Corruption 1 | . . 1 . . Average Corruption 1 | . . 1 . . Corruption Purged . | . . . . . Corruption Blocked . | . . . . . Overload Shots . | . . . . . Overflow Damage . | . . . . . Projectiles . | . . . . . Explosions . | . . . . . Melee . | . . . . . Knockbacks . | . . . . . Impact . | . . . . . Kinetic . | . . . . . Secondary . | . . . . . Self-Inflicted Damage 25 | . . 25 . . Shots . | . . . . . Rammed 15 | . . 15 . . Targets Rammed 15 | . . 15 . . Kicked . | . . . . . Crushed . | . . . . . Highest Temperature 159 | . 23 . . 159 Average Temperature 57 | . 8 . . 65 Received Heat Transfer 600 | . 99 165 9 327 Siege Activations . | . . . . . Martial Activations . | . . . . . Shielding Activations . | . . . . . Robots Disrupted . | . . . . . Combat Hostiles . | . . . . . Robots Corrupted . | . . . . . Combat Hostiles . | . . . . . Parts Fried . | . . . . . Impact Corruptions . | . . . . . Robots Melted . | . . . . . Combat Hostiles . | . . . . . Parts Melted . | . . . . . Heat Transferred 195 | . . . . 195 Parts Sabotaged . | . . . . . Parts Stolen . | . . . . . Parts Stripped . | . . . . . Power Chain Reactions . | . . . . . Alert | -11 -10 -9 -8 -7 ------- Run | Yrd Mat Mat Mat Fac Maximum Alert Level . | . . . . . Low Security (%) 100 | 100 100 100 100 100 Level 1 . | . . . . . Level 2 . | . . . . . Level 3 . | . . . . . Level 4 . | . . . . . Level 5 . | . . . . . High Security . | . . . . . Max Security . | . . . . . Peak Influence 150 | . 45 75 44 150 Initial 44 | . . . 44 . Average 28 | . 16 23 27 38 Influence Increases 621 | . 121 198 . 302 Destroy 0b10 Robot/C 220 | . 60 20 . 140 Destroy 0b10 Robot/NC 10 | . . . . 10 Destroy Leader 40 | . 10 10 . 20 Successful Hack 36 | . 6 18 . 12 Partial Spotted 75 | . . 45 . 30 Lose Combat Pursuer 240 | . 45 105 . 90 Influence Decreases 539 | . 121 93 105 220 Entered New Map 61 | . . . 61 . Time Decay 180 | . 50 40 . 90 Lost Part 209 | . 26 53 . 130 Purge Threat 89 | . 45 . 44 . Squads Dispatched 11 | . 2 2 1 6 Investigation 5 | . . 1 1 3 Extermination 1 | . . . . 1 Reinforcement 4 | . 2 1 . 1 Assault . | . . . . . Garrison 1 | . . . . 1 Intercept . | . . . . . Searches Triggered . | . . . . . Construction Impeded . | . . . . . Haulers Reinforced . | . . . . . Active Scanning Responses . | . . . . . Cargo Convoy Interrupts . | . . . . . Stealth | -11 -10 -9 -8 -7 --------- Run | Yrd Mat Mat Mat Fac Distress Signals 3 | . 1 1 . 1 Communications Jammed . | . . . . . Distress Signals . | . . . . . Times Spotted 71 | . 14 21 4 32 Peak Tracking Total 14 | . 7 14 4 14 Tactical Retreats 8 | . 2 2 . 4 Traps | -11 -10 -9 -8 -7 ------- Run | Yrd Mat Mat Mat Fac Traps Triggered 5 | . 4 1 . . Indirectly . | . . . . . Trap Hack Attempts . | . . . . . Triggered . | . . . . . Disarmed . | . . . . . Reprogrammed . | . . . . . Reused . | . . . . . Traps Extracted . | . . . . . Installed . | . . . . . Triggered . | . . . . . Machines | -11 -10 -9 -8 -7 ---------- Run | Yrd Mat Mat Mat Fac Machines Disabled . | . . . . . Max in Single Turn . | . . . . . Machines Repaired . | . . . . . Machines Dismantled . | . . . . . Machines Sabotaged . | . . . . . Overloaded Fab Kills . | . . . . . Hacking | -11 -10 -9 -8 -7 --------- Run | Yrd Mat Mat Mat Fac Machines Accessed 8 | . 2 2 1 3 Terminals 4 | . 2 1 1 . Fabricators 2 | . . . . 2 Repair Stations . | . . . . . Recycling Units . | . . . . . Scanalyzers 1 | . . 1 . . Garrison Access 1 | . . . . 1 Total Hacks 23 | . 2 7 4 10 Successful 11 | . 2 5 1 3 Failed 12 | . . 2 3 7 Catastrophic 3 | . . . . 3 Database Lockouts . | . . . . . Manual 5 | . 1 4 . . Terminals 11 | . 2 5 4 . Fabricators 8 | . . . . 8 Repair Stations . | . . . . . Recycling Units . | . . . . . Scanalyzers 2 | . . 2 . . Garrison Access 2 | . . . . 2 Terminal Hacks 6 | . 2 3 1 . Part Schematic 2 | . . 2 . . Unreport Threat 2 | . 1 . 1 . Locate Traps 1 | . . 1 . . Zone Layout 1 | . 1 . . . Fabricator Hacks 3 | . . . . 3 Load Schematic 2 | . . . . 2 Build 1 | . . . . 1 Repair Station Hacks . | . . . . . Recycling Unit Hacks . | . . . . . Scanalyzer 2 | . . 2 . . Insert Component 1 | . . 1 . . Analyze 1 | . . 1 . . Garrison Access Hacks . | . . . . . Unauthorized Hacks . | . . . . . Terminals . | . . . . . Fabricators . | . . . . . Repair Stations . | . . . . . Recycling Units . | . . . . . Scanalyzers . | . . . . . Garrison Access . | . . . . . Data Cores Recovered . | . . . . . Used . | . . . . . Hacking Detections 6 | . . 2 1 3 Full Trace Events 4 | . . . 1 3 Feedback Events . | . . . . . Feedback Blocked . | . . . . . Robot Schematics Acquired . | . . . . . Robots Built . | . . . . . Authchips . | . . . . . Time . | . . . . . Total Robot Build Rating . | . . . . . Part Schematics Acquired 3 | . . 3 . . Parts Built . | . . . . . Authchips . | . . . . . Time 31 | . . . . 31 Total Part Build Rating . | . . . . . Parts Repaired . | . . . . . Time . | . . . . . Parts Recycled . | . . . . . Recycled Matter . | . . . . . Retrieved Matter . | . . . . . Retrieved Components . | . . . . . Parts Scanalyzed 1 | . . 1 . . Part Schematics Acquired 1 | . . 1 . . Parts Damaged . | . . . . . Bothacking | -11 -10 -9 -8 -7 ------------ Run | Yrd Mat Mat Mat Fac Used RIF Installer . | . . . . . Robots Hacked . | . . . . . Non-combat . | . . . . . Combat . | . . . . . Robot Hacks Applied . | . . . . . Relay Couplers Released . | . . . . . Fabnet Peak Effective % . | . . . . . Robots Rewired . | . . . . . Allies Hacked . | . . . . . Hacks Repelled . | . . . . . Allies | -11 -10 -9 -8 -7 -------- Run | Yrd Mat Mat Mat Fac Total Allies . | . . . . . Largest Group . | . . . . . Highest-Rated Group . | . . . . . Highest-Rated Ally . | . . . . . Total Orders . | . . . . . Ally Attacks . | . . . . . Total Damage . | . . . . . Kills . | . . . . . Allies Corrupted . | . . . . . Allies Melted . | . . . . . Intel | -11 -10 -9 -8 -7 ------- Run | Yrd Mat Mat Mat Fac Active Infowar (turns) 179 | . . 4 . 175 ECM 179 | . . 4 . 175 Robot Analysis Total . | . . . . . Derelict Logs Recovered . | . . . . . Drone Launches . | . . . . . Drone Recoveries . | . . . . . Exploration | -11 -10 -9 -8 -7 ------------- Run | Yrd Mat Mat Mat Fac Turns Passed 641 | 30 152 89 27 343 Spaces Moved 1035 | 39 258 153 68 517 Core 102 | 39 34 29 . . Treads . | . . . . . Legs . | . . . . . Wheels . | . . . . . Hover . | . . . . . Flight 933 | . 224 124 68 517 Fastest Speed 26 | 50 37 29 35 26 Average Speed 37 | 51 38 37 35 37 Slowest Speed 295 | 100 50 50 35 295 Overloaded Moves . | . . . . . Propulsion Burnouts . | . . . . . Robots Hopped 17 | . . 4 . 13 Potential Cave-ins . | . . . . . Cave-ins Triggered . | . . . . . Exploration Rate (%) 23 | 3 62 25 10 17 Regions Visited 4 Branch Regions . Pre-discovered Areas . | . . . . . Known Exits Taken . | . . . . . Unknown Exits Taken 4 | 1 1 1 1 . Scrap Searched . | . . . . . Spaces Dug . | . . . . . Terrain Destroyed . | . . . . . Melee . | . . . . . Projectile . | . . . . . AOE . | . . . . . Terrain Rammed . | . . . . . Walls Destroyed . | . . . . . Machines Disabled . | . . . . . Actions | -11 -10 -9 -8 -7 --------- Run | Yrd Mat Mat Mat Fac Total 1216 | 48 283 179 71 635 Wait 68 | 2 . 6 . 60 Move 999 | 38 257 145 67 492 Hop 16 | . . 4 . 12 Pick Up 7 | 4 . 1 1 1 Fast Attach 37 | 2 12 5 1 17 Attach 21 | . 2 3 . 16 Detach 17 | 1 . 1 1 14 Swap 5 | . 1 . . 4 Drop 8 | 1 . . 1 6 Fire 24 | . 11 . . 13 Melee . | . . . . . Ram 14 | . . 14 . . Kick . | . . . . . Crush . | . . . . . Escape Stasis . | . . . . . Rewire . | . . . . . Trap . | . . . . . Miscellaneous . | . . . . . Route ------- -11/Scrapyard -10/Materials (discovered 2 exits: *Mat / *Min) -9/Materials -8/Materials -7/Factory History --------- Turn | Location | Event 10 | -11/Scrapyard | Discovered new exit (range 15) 31 | -11/Scrapyard | Entered Materials 113 | -10/Materials | Discovered new exit (range 16) 122 | -10/Materials | Identified exit to Mines 177 | -10/Materials | Discovered new exit (range 16) 183 | -10/Materials | Entered another Materials area 183 | -9/Materials | Evolved 2 slots: Propulsion x1, Utility x1 227 | -9/Materials | Core integrity fell below 50% 232 | -9/Materials | Core integrity fell below 20% 269 | -9/Materials | Discovered new exit (range 3) 272 | -9/Materials | Entered another Materials area 272 | -8/Materials | Evolved 2 slots: Power x1, Propulsion x1 297 | -8/Materials | Discovered new exit (range 9) 299 | -8/Materials | Entered Factory 299 | -7/Factory | Evolved 2 slots: Propulsion x1, Utility x1 303 | -7/Factory | Lost 7 parts (5n2w) 544 | -7/Factory | Core integrity fell below 50% 569 | -7/Factory | Lost 6 parts (2p1n2u1w) 597 | -7/Factory | Core integrity fell below 20% 619 | -7/Factory | Destroyed 7 combat bots 627 | -7/Factory | Lost 6 parts (2p3n1u) 634 | -7/Factory | Garrison activated, responded to threat 642 | -7/Factory | Destroyed by H-55 Commando with Assault Rifle Last Messages --------------- Uploading VTOL Module schematic... Loaded successfully: VTOL Module Rating: 2 Time: 31 Initiate build sequence. >>Build Building VTOL Module... ETC: 31 ALERT: Unauthorized use of fabrication network. Dispatching investigation squad. K-01 Serf cleans the Pressure Siphon. G-47 Trooper calls for garrison reinforcements. ALERT: Activating Garrison Access F003. T-07 Excavator destroyed. Imp. Spread Laser destroyed. K-01 Serf cleans the Power Conduit. Imp. Spread Laser destroyed. K-01 Serf cleans the Power Conduit. Penetrated by Slug. Map ----- +----------------------------------------------------+ | ?????????????????????????????????????????????????? | | ?????????????????????????????????????????????????? | | ?????????????????????????????????????????????????? | | ?????????????????????????????????????????????????? | | ?????????????????????????????????????????????????? | | ?????????????????????????????????????????????????? | | ?????????????????????????????????????????????????? | | ?????????????????????????????????????????????????? | | ?????????????????????????????????????????????????? | | ?????????????????????????????????????????????????? | | ?????????????????????????????????????????????????? | | ???????????????? ??????????????????????????? | | ???????????????# #?????????????????????????? | | ???????????????# #?????????????????????????? | | ???????????????# #? ??????????????????????? | | ???????????????# #? ???????????????????????? | | ???????????????# # ????????????????????????? | | ???????????????# # ????????????????????????? | | ???????????????+ +?????????????????????????? | | ###????????????# #?????????????????????????? | | #????????????# #?????????????????????????? | | ###+########## #######???????????????????? | | # """ #???????????????????? | | #""F""#???????????????????? | | k #""!""####????????????????? | | ############## @!!! #????????????????? | | # # g !%* #????????????????? | | ### k uh """" """ #????????????????? | | #?# """"""""" # """" """ +????????????????? | | ###%==! # """" """ #????????????????? | | # ! [[ # #????????????????? | | # #%![%% # """ """" #????????????????? | | ###=%[ % # """ """" #????????????????? | | !/%% % # """g """"? #????????????????? | | !#%==[* # / ??????????????????????? | | %# # """ a"??????????????????????? | | # ##### """ "??????????????????????? | | ### ##???# """ ???????????????????????? | | # ##????# ???????????????????????? | | ######?????# ! ?? ???????????????????????? | | #??????????# ? ???????????????????????? | | #??????????? ####???????????????????????????? | | #??????????? ???????????????????????????????? | | #????????????????????????????????????????????? | | ^ #????????????????????????????????????????????? | | #????????????????????????????????????????????? | | ?????????????????????????????????????????? | | ??????????????????????????????????????? | | """ ""????????????????????????????????????? | | "R """?????????????????????????????????????? | +----------------------------------------------------+ Best States ------------- Heat Dissipation 61 Energy Generation 23 Energy Capacity 275 Matter Stores 300 Matter Capacity 300 Sight Range 16 Terrain Scan Density 10 ECM Strength 1 Evasion (%) 64 Item Schematics ----------------- Flight Unit | -9/Materials | Scanalyzed VTOL Module | -9/Materials | Hacked Cooling System | -9/Materials | Hacked Robot Schematics ------------------ None Fabricated ------------ Nothing Repaired ---------- Nothing Alien Tech Used ----------------- None Achievements -------------- None Challenges ------------ None Game ------ Seed StormHackingInterpreter Manual? 0 Play Time 00:26:33 Cumulative 12.6 hours Start 2025.08.12 @ 11:38:45 End 2025.08.12 @ 12:03:31 Sessions 1 Manual Loads 0 Difficulty Rogue Special Mode None Game No. 25 Rogue 25 Adventurer 0 Explorer 0 Win Type - Total 0 Types 0/0/0/0/0/0/0/0/0/0 Lore% 2 Gallery% 15 Achievement% 18 Wizard Run 0 Options --------- Layout 1 ASCII 1 Keyboard 0 Movement Numpad Keybinds 0 Fullscreen 1 Font 24/Cog Map View 50x35 Zoom Use 0% Tactical HUD 0 Map Filters NONE Filters NONE Steam 0 RUN: 8ec30434-a2a2-4d44-9dea-d01e7c85a67b